{"text_format":"3","workbook":"xlsx","n_sheets":3,"sheets":["Начало","Портфель","Распределение активов"],"not_rendered":{"charts":1,"images":6,"defined_names":1},"read":"whole","date_system":"1900"}

{"sheet":"Начало","index":0,"n_rows":28,"n_cols":12,"rows_kept":28,"merged":[[0,1,0,12],[2,1,2,11],[6,1,6,3],[6,11,6,12],[27,3,27,5]]}
[null,"ОТСЛЕЖИВАНИЕ ИНВЕСТИЦИЙ"]
[]
[null,"Шаблон отслеживания инвестиций позволяет отслеживать инвестиции и распределение активов. Тип данных \"Акции\" в Excel помогает поддерживать в актуальном состоянии цены и сведения о ресурсах в портфеле. Шаблон состоит из двух листов, \"Портфель\" и \"Распределение активов\", описанных ниже. Примечание. Тип данных \"Акции\" в Excel доступен только при наличии подписки на Office 365. "]
[]
[null,"Портфель"]
[]
[null,"Добавьте инвестиции, биржевые коды, названия компаний или фондов в примерах или добавьте дополнительные строки. Выберите категорию активов и введите количество акций.",{"$nulls":9},"Нажмите кнопку Добавить столбец, чтобы добавить дополнительные столбцы, например \"Биржевой код\" или \"Биржа\".\n"]
{"$rows_empty":16}
[null,"Чтобы обновить данные, щелкните любую акцию. На вкладе Данные, в группе Запросы и подключения, нажмите Обновить все или нажмите клавиши CTRL+ALT+F5."]
[]
[null,"Распределение активов"]
[]
[null,"Измените Категории и Моя цель, чтобы настроить цели портфелей.",null,"Если пороговое значение для категории активов превышено, сумма будет выделена желтым цветом."]

{"sheet":"Портфель","index":1,"n_rows":12,"n_cols":9,"rows_kept":12,"merged":[[0,1,0,4]]}
[null,"ОТСЛЕЖИВАНИЕ ИНВЕСТИЦИЙ"]
[]
[null,"Портфель"]
[]
[null,"Компания","Категория","Доли активов","Цена","Изменение","Изменение (%)","Портфель (%)","Стоимость"]
[null,{"$error":"#VALUE!"},"Акции США",{"v":1200,"d":"1,200"},{"$f":"_FV(ТаблицаПортфель[[#This Row],[Компания]],\"Price\")","v":{"v":235.81,"d":"235.81 ₽"}},{"$f":"_FV(ТаблицаПортфель[[#This Row],[Компания]],\"Change\")","v":{"v":-4.54,"d":"-4.54 ₽"}},{"$f":"_FV(ТаблицаПортфель[[#This Row],[Компания]],\"Change (%)\",TRUE)","v":{"v":-0.018889,"d":"-1.89%"}},{"$f":"IFERROR(I6/SUBTOTAL(109,ТаблицаПортфель[Стоимость]),\"\")","v":{"v":0.7554602756768446,"d":"76%"}},{"$f":"D6 * E6","v":{"v":282972,"d":"282,972.00 ₽"}}]
[null,{"$error":"#VALUE!"},"Облигации",{"v":1300,"d":"1,300"},{"$f":"_FV(ТаблицаПортфель[[#This Row],[Компания]],\"Price\")","v":{"v":9.82,"d":"9.82 ₽"}},{"$f":"_FV(ТаблицаПортфель[[#This Row],[Компания]],\"Change\")","v":{"v":0.09,"d":"0.09 ₽"}},{"$f":"_FV(ТаблицаПортфель[[#This Row],[Компания]],\"Change (%)\",TRUE)","v":{"v":0.009250000000000001,"d":"0.93%"}},{"$f":"IFERROR(I7/SUBTOTAL(109,ТаблицаПортфель[Стоимость]),\"\")","v":{"v":0.034081838059209384,"d":"3%"}},{"v":12766,"d":"12,766.00 ₽"}]
[null,{"$error":"#VALUE!"},"Международные акции",{"v":1200,"d":"1,200"},{"$f":"_FV(ТаблицаПортфель[[#This Row],[Компания]],\"Price\")","v":{"v":29.74,"d":"29.74 ₽"}},{"$f":"_FV(ТаблицаПортфель[[#This Row],[Компания]],\"Change\")","v":{"v":-0.13,"d":"-0.13 ₽"}},{"$f":"_FV(ТаблицаПортфель[[#This Row],[Компания]],\"Change (%)\",TRUE)","v":{"v":-4.352E-3,"d":"-0.44%"}},{"$f":"IFERROR(I8/SUBTOTAL(109,ТаблицаПортфель[Стоимость]),\"\")","v":{"v":0.09527750561311801,"d":"10%"}},{"v":35688,"d":"35,688.00 ₽"}]
[null,{"$error":"#VALUE!"},"Наличные деньги",{"v":10000,"d":"10,000"},{"$f":"_FV(ТаблицаПортфель[[#This Row],[Компания]],\"Price\")","v":{"v":1,"d":"1.00 ₽"}},{"$f":"_FV(ТаблицаПортфель[[#This Row],[Компания]],\"Change\")","v":0},{"$f":"_FV(ТаблицаПортфель[[#This Row],[Компания]],\"Change (%)\",TRUE)","v":{"v":0,"d":"0.00%"}},{"$f":"IFERROR(I9/SUBTOTAL(109,ТаблицаПортфель[Стоимость]),\"\")","v":{"v":0.026697350821877946,"d":"3%"}},{"v":10000,"d":"10,000.00 ₽"}]
[null,{"$error":"#VALUE!"},"Недвижимость",125,{"$f":"_FV(ТаблицаПортфель[[#This Row],[Компания]],\"Price\")","v":{"v":123.48,"d":"123.48 ₽"}},{"$f":"_FV(ТаблицаПортфель[[#This Row],[Компания]],\"Change\")","v":{"v":-1.81,"d":"-1.81 ₽"}},{"$f":"_FV(ТаблицаПортфель[[#This Row],[Компания]],\"Change (%)\",TRUE)","v":{"v":-0.014446,"d":"-1.44%"}},{"$f":"IFERROR(I10/SUBTOTAL(109,ТаблицаПортфель[Стоимость]),\"\")","v":{"v":0.04120736099356861,"d":"4%"}},{"v":15435,"d":"15,435.00 ₽"}]
[null,{"$error":"#VALUE!"},"Товары",100,{"$f":"_FV(ТаблицаПортфель[[#This Row],[Компания]],\"Price\")","v":{"v":177.08,"d":"177.08 ₽"}},{"$f":"_FV(ТаблицаПортфель[[#This Row],[Компания]],\"Change\")","v":{"v":-0.51,"d":"-0.51 ₽"}},{"$f":"_FV(ТаблицаПортфель[[#This Row],[Компания]],\"Change (%)\",TRUE)","v":{"v":-2.872E-3,"d":"-0.29%"}},{"$f":"IFERROR(I11/SUBTOTAL(109,ТаблицаПортфель[Стоимость]),\"\")","v":{"v":0.047275668835381465,"d":"5%"}},{"v":17708,"d":"17,708.00 ₽"}]
[null,"Итог",{"$nulls":6},{"$f":"SUBTOTAL(109,ТаблицаПортфель[Стоимость])","v":{"v":374569,"d":"374,569.00 ₽"}}]

{"sheet":"Распределение активов","index":2,"n_rows":26,"n_cols":7,"rows_kept":26,"merged":[[0,1,0,6]]}
[null,"ОТСЛЕЖИВАНИЕ ИНВЕСТИЦИЙ"]
[]
[null,"Распределение активов"]
{"$rows_empty":15}
[null,"Категория","Моя цель","Фактическое значение","Разница","Пороговое значение","Стоимость"]
[null,"Акции США",{"v":0.55,"d":"55%"},{"$f":"IFERROR(G20/SUBTOTAL(109,ТаблицаРаспределенияАктивов[Стоимость]),\"\")","v":{"v":0.7554602756768446,"d":"76%"}},{"$f":"D20 - C20","v":{"v":0.20546027567684455,"d":"20.5%"}},{"$f":"MIN(5%, $C20 * 25%)","v":{"v":0.05,"d":"5%"}},{"$f":"SUMIF(ТаблицаПортфель[Категория], B20, ТаблицаПортфель[Стоимость])","v":{"v":282972,"d":"282,972.00 ₽"}}]
[null,"Международные акции",{"v":0.2,"d":"20%"},{"$f":"IFERROR(G21/SUBTOTAL(109,ТаблицаРаспределенияАктивов[Стоимость]),\"\")","v":{"v":0.09527750561311801,"d":"10%"}},{"v":-0.104722494386882,"d":"-10.5%"},{"$f":"MIN(5%, $C21 * 25%)","v":{"v":0.05,"d":"5%"}},{"$f":"SUMIF(ТаблицаПортфель[Категория], B21, ТаблицаПортфель[Стоимость])","v":{"v":35688,"d":"35,688.00 ₽"}}]
[null,"Облигации",{"v":0.1,"d":"10%"},{"$f":"IFERROR(G22/SUBTOTAL(109,ТаблицаРаспределенияАктивов[Стоимость]),\"\")","v":{"v":0.034081838059209384,"d":"3%"}},{"v":-0.06591816194079061,"d":"-6.6%"},{"v":0.025,"d":"3%"},{"$f":"SUMIF(ТаблицаПортфель[Категория], B22, ТаблицаПортфель[Стоимость])","v":{"v":12766,"d":"12,766.00 ₽"}}]
[null,"Наличные деньги",{"v":0.05,"d":"5%"},{"$f":"IFERROR(G23/SUBTOTAL(109,ТаблицаРаспределенияАктивов[Стоимость]),\"\")","v":{"v":0.026697350821877946,"d":"3%"}},{"v":-0.023302649178122057,"d":"-2.3%"},{"v":0.0125,"d":"1%"},{"$f":"SUMIF(ТаблицаПортфель[Категория], B23, ТаблицаПортфель[Стоимость])","v":{"v":10000,"d":"10,000.00 ₽"}}]
[null,"Недвижимость",{"v":0.05,"d":"5%"},{"$f":"IFERROR(G24/SUBTOTAL(109,ТаблицаРаспределенияАктивов[Стоимость]),\"\")","v":{"v":0.04120736099356861,"d":"4%"}},{"v":-8.792639006431395E-3,"d":"-0.9%"},{"v":0.0125,"d":"1%"},{"$f":"SUMIF(ТаблицаПортфель[Категория], B24, ТаблицаПортфель[Стоимость])","v":{"v":15435,"d":"15,435.00 ₽"}}]
[null,"Товары",{"v":0.05,"d":"5%"},{"$f":"IFERROR(G25/SUBTOTAL(109,ТаблицаРаспределенияАктивов[Стоимость]),\"\")","v":{"v":0.047275668835381465,"d":"5%"}},{"v":-2.7243311646185375E-3,"d":"-0.3%"},{"v":0.0125,"d":"1%"},{"$f":"SUMIF(ТаблицаПортфель[Категория], B25, ТаблицаПортфель[Стоимость])","v":{"v":17708,"d":"17,708.00 ₽"}}]
[null,null,1]